Cogmind - Beta 9.4 @@@ ROGUE MODE // 2020.03.08 @ 22:52:06 Player: Beanchilla Result: Destroyed by S-10 Pest with Light Assault Rifle Performance ------------- Evolutions (1) 500 Regions Visited (3) 600 Robots Destroyed (7) 35 Value Destroyed (200) 200 Prototype IDs (0) 0 Alien Tech Used (0) 0 Bonus (0) 0 TOTAL SCORE: 1335 Bonus ------- None Cogmind --------- Core Integrity 0/400 Matter 500/500 Energy 125/125 System Corruption 0% Temperature Cool (0) Movement Core (200) Ox3 Location -9/Mines Parts ------- > --- POWER (2) -------- Light Ion Engine > --- PROPULSION (2) --- (None) > --- UTILITY (3) ------ Heat Sink High-capacity Matter Pod Structural Scanner > --- WEAPON (2) ------- EM Pulse Gun > --- INVENTORY (4) ---- Medium Storage Unit Peak State ------------ > --- POWER ------------ Light Ion Engine Improved Ion Engine > --- PROPULSION ------- Aluminum Leg Aluminum Leg > --- UTILITY ---------- Small Storage Unit High-capacity Matter Pod Structural Scanner > --- WEAPON ----------- Heavy EM Pulse Gun Medium Laser > --- INVENTORY -------- Ion Engine Light Ion Engine EM Pulse Gun Medium Laser Medium Laser [Rating: 11] Favorites ----------- Power Light Ion Engine Engine Light Ion Engine Propulsion Aluminum Leg Leg Aluminum Leg Utility High-capacity Matter Pod Device Structural Scanner Storage High-capacity Matter Pod Weapon Medium Laser Energy Gun Medium Laser Ballistic Gun Assault Rifle Build | -11 -10 -9 -9 ------- Run | Scr Mat Mat Min Slots Evolved 2 | . . 2 . Power 1 | . . 1 . Propulsion . | . . . . Utility 1 | . . 1 . Weapon . | . . . . Parts Attached 28 | 6 9 10 3 Power 7 | 1 1 4 1 Engine 7 | 1 1 4 1 Core . | . . . . Reactor . | . . . . Propulsion 8 | 2 4 2 . Treads . | . . . . Leg 8 | 2 4 2 . Wheel . | . . . . Hover . | . . . . Flight . | . . . . Utility 4 | 1 1 2 . Device 2 | . . 2 . Storage 2 | 1 1 . . Processor . | . . . . Hackware . | . . . . Protection . | . . . . Artifact . | . . . . Weapon 9 | 2 3 2 2 Energy Gun 7 | 1 2 2 2 Energy Cannon . | . . . . Ballistic Gun 2 | 1 1 . . Ballistic Cannon . | . . . . Launcher . | . . . . Special Weapon . | . . . . Impact Weapon . | . . . . Slashing Weapon . | . . . . Piercing Weapon . | . . . . Special Melee Weapon . | . . . . Unidentified Prototypes . | . . . . Parts Lost 13 | . 6 6 1 Power 3 | . 1 2 . Propulsion 3 | . 1 2 . Utility . | . . . . Weapon 7 | . 4 2 1 Highest Loss Streak 4 | . 4 3 1 Average Slot Usage (%) 77 | . 86 74 65 Engine 12 | . 12 14 11 Leg 16 | . 25 16 . Device 12 | . . 19 22 Storage 18 | . 28 13 11 Energy Gun 11 | . 7 10 21 Ballistic Gun 4 | . 11 . . Naked Turns . | . . . . Heaviest Build 24 | 13 17 24 13 Greatest Support 20 | 20 20 20 3 Greatest Overweight (x) 4 | 2 4 4 4 Average Overweight (x) . | . . . 3 Largest Inventory Capacity 6 | 6 6 6 4 Average Capacity 5 | 5 6 4 4 Most Carried 6 | 5 6 5 3 Average Carried 3 | 1 4 3 1 Final Capacity 6 | 6 6 4 4 Final Carried 5 | 2 5 4 1 Class Distribution -------------------- 100% | Mutant Dominant Class ---------------- Mutant | -10/Materials Mutant | -9/Materials Mutant | -9/Mines Resources | -11 -10 -9 -9 ----------- Run | Scr Mat Mat Min Matter Collected 696 | 241 172 253 30 Remotely . | . . . . Salvage Created 248 | . 155 93 . Parts 16 | . 10 6 . Haulers Intercepted . | . . . . Recyclers Shooed 1 | . . 1 . Parts Field Recycled . | . . . . Retrieved Matter . | . . . . Parts Self-Destructed . | . . . . Prevented . | . . . . Kills | -11 -10 -9 -9 ------- Run | Scr Mat Mat Min Combat Hostiles Destroyed 7 | . 4 3 . Melee 1 | . 1 . . Guns 6 | . 3 3 . Classes Destroyed 3 | . 2 1 . Swarmer 3 | . 1 2 . Grunt 3 | . 3 . . Sentry 1 | . . 1 . Best Kill Streak 2 | . 2 2 . Combat Bots Only 2 | . 2 2 . Max Kills in Single Turn 1 | . 1 1 . Gunslinging . | . . . . Exploded . | . . . . Melee 1 | . 1 . . Uniques/NPCs Destroyed . | . . . . Combat | -11 -10 -9 -9 -------- Run | Scr Mat Mat Min Damage Taken 1854 | . 998 670 186 Core 594 | . 190 323 81 Absorbed by Shields . | . . . . Core Remaining (%) 62 | 100 24 . . Volleys Fired 38 | . 30 8 . Largest 2 | . 2 2 . Hottest 95 | . 70 95 . Shots Fired 56 | . 41 15 . Gun 56 | . 41 15 . Cannon . | . . . . Launcher . | . . . . Special . | . . . . Kinetic 26 | . 26 . . Thermal 19 | . 11 8 . Explosive . | . . . . Electromagnetic 11 | . 4 7 . Robot Hit Streak 5 | . 5 4 . Robot Miss Streak 3 | . 3 2 . Penetration Max . | . . . . Secondary Targets . | . . . . Shots Hit Robots 35 | . 26 9 . Core Hits 17 | . 10 7 . Critical Hits 1 | . 1 . . Critical Kills . | . . . . Critical Parts Destroyed 1 | . 1 . . Melee Attacks . | . . . . Impact . | . . . . Slashing . | . . . . Piercing . | . . . . Sneak Attacks . | . . . . Combat Hostiles . | . . . . Follow-up Attacks . | . . . . Damage Inflicted 480 | . 371 109 . Guns 420 | . 328 92 . Cannons . | . . . . Explosions 37 | . 37 . . Melee . | . . . . Ramming 23 | . 6 17 . Kinetic 228 | . 228 . . Thermal 164 | . 113 51 . Explosive . | . . . . Electromagnetic 65 | . 24 41 . Impact . | . . . . Slashing . | . . . . Piercing . | . . . . Highest Corruption . | . . . . Average Corruption . | . . . . Corruption Purged . | . . . . Overload Shots . | . . . . Overflow Damage . | . . . . Projectiles . | . . . . Explosions . | . . . . Melee . | . . . . Knockbacks . | . . . . Impact . | . . . . Kinetic . | . . . . Secondary . | . . . . Self-Inflicted Damage 35 | . 33 2 . Shots 1 | . 1 . . Rammed 9 | . 8 1 . Targets Rammed 12 | . 8 4 . Kicked 3 | . . 3 . Crushed . | . . . . Highest Temperature 234 | . 234 72 . Average Temperature 81 | . 101 35 . Received Heat Transfer 639 | . 393 246 . Siege Activations . | . . . . Robots Corrupted . | . . . . Combat Hostiles . | . . . . Parts Fried . | . . . . Impact Corruptions . | . . . . Robots Melted . | . . . . Combat Hostiles . | . . . . Parts Melted 1 | . . 1 . Heat Transferred 420 | . 272 148 . Parts Sabotaged . | . . . . Parts Stolen . | . . . . Parts Stripped . | . . . . Power Chain Reactions 1 | . 1 . . Missiles Intercepted . | . . . . Alert | -11 -10 -9 -9 ------- Run | Scr Mat Mat Min Peak Influence 175 | . 95 175 67 Average Influence 79 | . 59 123 66 Maximum Alert Level . | . . . . Low Security (%) 100 | 100 100 100 100 Level 1 . | . . . . Level 2 . | . . . . Level 3 . | . . . . Level 4 . | . . . . Level 5 . | . . . . High Security . | . . . . Max Security . | . . . . Squads Dispatched 3 | . 1 2 . Investigation . | . . . . Extermination . | . . . . Reinforcement 3 | . 1 2 . Assault . | . . . . Garrison . | . . . . Intercept . | . . . . Construction Impeded . | . . . . Haulers Reinforced . | . . . . Stealth | -11 -10 -9 -9 --------- Run | Scr Mat Mat Min Distress Signals 2 | . 1 1 . Communications Jammed . | . . . . Distress Signals . | . . . . Times Spotted 31 | . 10 17 4 Peak Tracking Total 9 | . 4 9 4 Tactical Retreats 7 | . 3 4 . Traps | -11 -10 -9 -9 ------- Run | Scr Mat Mat Min Traps Triggered . | . . . . Indirectly . | . . . . Trap Hack Attempts . | . . . . Triggered . | . . . . Disarmed . | . . . . Reprogrammed . | . . . . Reused . | . . . . Traps Extracted . | . . . . Installed . | . . . . Triggered . | . . . . Machines | -11 -10 -9 -9 ---------- Run | Scr Mat Mat Min Machines Disabled 1 | . . 1 . Max in Single Turn 1 | . . 1 . Machines Sabotaged . | . . . . Garrisons Compromised . | . . . . Overloaded Fab Kills . | . . . . Fab Network Shutdowns . | . . . . Hacking | -11 -10 -9 -9 --------- Run | Scr Mat Mat Min Machines Accessed . | . . . . Terminals . | . . . . Fabricators . | . . . . Repair Stations . | . . . . Recycling Units . | . . . . Scanalyzers . | . . . . Garrison Access . | . . . . Total Hacks . | . . . . Successful . | . . . . Failed . | . . . . Catastrophic . | . . . . Database Lockouts . | . . . . Manual . | . . . . Terminals . | . . . . Fabricators . | . . . . Repair Stations . | . . . . Recycling Units . | . . . . Scanalyzers . | . . . . Garrison Access . | . . . . Terminal Hacks . | . . . . Fabricator Hacks . | . . . . Repair Station Hacks . | . . . . Recycling Unit Hacks . | . . . . Scanalyzer . | . . . . Garrison Access Hacks . | . . . . Unauthorized Hacks . | . . . . Terminals . | . . . . Fabricators . | . . . . Repair Stations . | . . . . Recycling Units . | . . . . Scanalyzers . | . . . . Garrison Access . | . . . . Data Cores Recovered . | . . . . Used . | . . . . Hacking Detections . | . . . . Full Trace Events . | . . . . Feedback Events . | . . . . Feedback Blocked . | . . . . Robot Schematics Acquired . | . . . . Robots Built . | . . . . Matter . | . . . . Time . | . . . . Total Robot Build Rating . | . . . . Part Schematics Acquired . | . . . . Parts Built . | . . . . Matter . | . . . . Time . | . . . . Total Part Build Rating . | . . . . Parts Repaired . | . . . . Time . | . . . . Parts Recycled . | . . . . Recycled Matter . | . . . . Retrieved Matter . | . . . . Retrieved Components . | . . . . Parts Scanalyzed . | . . . . Part Schematics Acquired . | . . . . Parts Damaged . | . . . . Bothacking | -11 -10 -9 -9 ------------ Run | Scr Mat Mat Min Used RIF Installer . | . . . . Robots Hacked . | . . . . Non-combat . | . . . . Combat . | . . . . Robot Hacks Applied . | . . . . Relay Couplers Released . | . . . . Robots Rewired . | . . . . Allies Hacked . | . . . . Hacks Repelled . | . . . . Allies | -11 -10 -9 -9 -------- Run | Scr Mat Mat Min Total Allies . | . . . . Largest Group . | . . . . Highest-Rated Group . | . . . . Highest-Rated Ally . | . . . . Total Orders . | . . . . Ally Attacks . | . . . . Total Damage . | . . . . Kills . | . . . . Allies Corrupted . | . . . . Allies Melted . | . . . . Intel | -11 -10 -9 -9 ------- Run | Scr Mat Mat Min Robot Analysis Total . | . . . . Derelict Logs Recovered 2 | . . . 2 Drone Launches . | . . . . Drone Recoveries . | . . . . Exploration | -11 -10 -9 -9 ------------- Run | Scr Mat Mat Min Turns Passed 1063 | 69 397 379 218 Spaces Moved 634 | 49 225 274 86 Core 234 | 17 29 102 86 Treads . | . . . . Legs 400 | 32 196 172 . Wheels . | . . . . Hover . | . . . . Flight . | . . . . Fastest Speed 50 | 50 120 100 200 Average Speed 138 | 110 124 120 248 Slowest Speed 250 | 150 250 250 250 Overloaded Moves . | . . . . Propulsion Burnouts . | . . . . Robots Hopped . | . . . . Cave-ins Triggered . | . . . . Exploration Rate (%) 26 | 4 37 37 29 Regions Visited 3 Branch Regions 1 Pre-discovered Areas . | . . . . Known Exits Taken . | . . . . Unknown Exits Taken 3 | 1 1 1 . Scrap Searched . | . . . . Spaces Dug . | . . . . Terrain Destroyed 2 | . 2 . . Melee . | . . . . Projectile . | . . . . AOE 2 | . 2 . . Actions | -11 -10 -9 -9 --------- Run | Scr Mat Mat Min Total 751 | 64 288 308 91 Wait 6 | . 6 . . Move 631 | 48 224 273 86 Hop . | . . . . Pick Up 27 | 9 8 9 1 Fast Attach 1 | . 1 . . Attach 18 | 6 2 7 3 Detach . | . . . . Swap 9 | . 6 3 . Drop 9 | 1 3 4 1 Fire 38 | . 30 8 . Melee . | . . . . Ram 7 | . 6 1 . Kick 5 | . 2 3 . Crush . | . . . . Escape Stasis . | . . . . Rewire . | . . . . Trap . | . . . . Miscellaneous . | . . . . Route ------- -11/Scrapyard -10/Materials -9/Materials -9/Mines History --------- Turn | Location | Event 17 | -11/Scrapyard | Discovered new exit (range 15) 70 | -11/Scrapyard | Entered Materials 309 | -10/Materials | Build established: Mutant 383 | -10/Materials | Core integrity fell below 50% 440 | -10/Materials | Discovered new exit (range 13) 457 | -10/Materials | Lost 4 parts (1p1n2w) 467 | -10/Materials | Entered another Materials area 467 | -9/Materials | Evolved 2 slots: Power x1, Utility x1 774 | -9/Materials | Lost 3 parts (1p2n) 789 | -9/Materials | Core integrity fell below 50% 825 | -9/Materials | Discovered new exit (range 12) 844 | -9/Materials | Core integrity fell below 20% 846 | -9/Materials | Entered Mines 869 | -9/Mines | Learned 2 Materials zone layouts 877 | -9/Mines | Learned location of 1 exit from Materials 1064 | -9/Mines | Destroyed by S-10 Pest with Light Assault Rifle Last Messages --------------- U-05 Engineer lays Concrete. Slammed into U-05 Engineer. K-01 Serf collects debris. T-07 Excavator is excavating. EXIT=FOUND T-07 Excavator is excavating. LOCATION=UNKNOWN GOAL=ESCAPE Acquired derelict log, extracted data. Data stored: Materials zone layouts (x2). Acquired derelict log, extracted data. Data stored: Materials exits (x1). Extracted 30 matter. Dropped Sml. Storage Unit. Acquired Med. Storage Unit. C-30 ARC bursts open, deploying its payload. S-10 Pest unfolds itself. K-01 Serf collects debris. Med. Laser destroyed. K-01 Serf collects debris. Map ----- +----------------------------------------------------+ | ?????????????????????????????????????????????????? | | ?????????????????????????????????????????????????? | | ?????????????????????????????????????????????????? | | ?????????????????????????????????????????????????? | | ?????????????????????????????????????????????????? | | ?????????????????????????????????????????????????? | | ?????????????????????????????????????????????????? | | ?????????????????????????????????????????????????? | | ?????????????????????????????????????????????????? | | ?????????????????????????????????????????????????? | | ?????????????????????????????????????????????????? | | ?????????????##??????????????????????????????????? | | ????????????? ??????????????????????????????????? | | ????????????? ??????????????????????????????????? | | ?????????????# ??????????????????????????????????? | | ?????????????# #?????????????????????????????????? | | ?????????????# ##????????????????????????????????? | | ????????????##k ###??????????????????????????????? | | ????????????# s ####???????????????????????????? | | ????????????#r s ##??????????????????????????? | | ????????????# s #??????????????????????????? | | ???????????## ##?????????????????????????? | | ??????????## ####??????????????????????? | | ???????#### s ##?????????????????????? | | ??????## #### #### #????????????? | | ?????## ##??## @ #????????????? | | ?????# #????# #?????????????? | | ?????# #????## # #?????????????? | | ?????## ##?#############????????????????? | | ??????## ### ##????????????????????????? | | ???????# #????????????????????????? | | ##?????# #????????????????????????? | | ##???# ## #????????????????????????? | | ##?## ### #????????????????????????? | | ### #?# #????????????????????????? | | #?# #????????????????????????? | | # ##?## #???????????????????????? | | ## ##???## #??????????????????????? | | ## #?????# #?????????????????????? | | ##?????# #????????????????????? | | ###??????## ## #???????????????????? | | #######?????????####?# #???????????????????? | | ?????????????????????? ##???????????????????? | | ?????????????????????? ##????????????????????? | | ?????????????????????? #?????????????????????? | | ???????????????????????? ???????????????????????? | | ?????????????????????????????????????????????????? | | ?????????????????????????????????????????????????? | | ?????????????????????????????????????????????????? | | | +----------------------------------------------------+ Best States ------------- Heat Dissipation 38 Energy Generation 17 Energy Capacity 290 Matter Stores 500 Matter Capacity 500 Sight Range 16 Terrain Scan Density 10 Evasion (%) 40 Item Schematics ----------------- None Robot Schematics ------------------ None Fabricated ------------ Nothing Alien Tech Used ----------------- None Achievements -------------- Fist Fight Challenges ------------ None Game ------ Seed WeightMeleeMallet Manual? 0 Play Time 00:11:47 Cumulative 8.0 hours Start 2020.03.08 @ 03:01:16 End 2020.03.08 @ 22:52:06 Sessions 1 Manual Loads 0 Difficulty Rogue Special Mode None Game No. 24 Rogue 24 Adventurer 0 Explorer 0 Win Type - Total 0 Types 0/0/0/0/0/0/0 Lore% 2 Gallery% 10 Achievement% 4 Wizard Run 0 Options --------- ASCII 0 Keyboard 0 Movement Numpad Keybinds 0 Fullscreen 1 Font 18/X11Bold Map View 76x50 Tactical HUD 0 Map Filters NONE Filters NONE Steam 1 RUN: a8e3d1a6-4747-453c-ab80-25b11edec449